bitfinex/quotes_SOLUSD_20251207
["timestamp","ask_amount","ask_price","bid_price","bid_amount"]
[1765125497263,3.18309806,130.9,130.87,7.64113713]
[1765125497689,2.47309806,130.88,130.86,0.1]
[1765125497961,0.71,130.89,130.86,0.1]
[1765125497962,2.47309806,130.87,130.86,0.1]
[1765125498337,10.82426868,130.87,130.86,0.1]
[1765125499667,3.18309806,130.87,130.86,0.1]
[1765125506563,2.47309806,130.87,130.86,0.1]
[1765125506965,3.18309806,130.87,130.86,0.1]
[1765125507678,2.47309806,130.9,130.86,0.8]
[1765125507856,2.47309806,130.91,130.86,0.8]
[1765125508752,2.47309806,130.91,130.87,7.64117062]
[1765125508953,3.18309806,130.91,130.87,7.64117062]
[1765125509154,2.47309806,130.91,130.88,0.7]
[1765125509738,3.18309806,130.92,130.88,0.7]
[1765125510459,2.47309806,130.91,130.88,0.7]
[1765125511064,3.18309806,130.92,130.89,7.64000305]
[1765125511565,3.18309806,130.92,130.89,8.34000305]
[1765125512154,2.47309806,130.9,130.88,7.64037954]
[1765125512376,3.18309806,130.9,130.88,7.64037954]
[1765125512671,2.47309806,130.9,130.88,7.64037954]
[1765125513057,2.47309806,130.9,130.88,8.34037954]
[1765125513257,3.18309806,130.91,130.88,8.34037954]
[1765125515160,2.47309806,130.91,130.89,0.7]
[1765125515356,2.47309806,130.91,130.88,8.34037954]
[1765125515558,2.47309806,130.91,130.89,0.7]
[1765125516069,3.18309806,130.92,130.89,7.63995756]
[1765125516303,2.47309806,130.92,130.89,8.33995756]
[1765125516751,4.57468091,130.92,130.89,8.33995756]
[1765125518170,12.21300548,130.92,130.89,8.33995756]
[1765125518370,3.86468091,130.91,130.89,7.63995756]
[1765125518550,3.86468091,130.91,130.89,8.33995756]
[1765125520072,0.71,130.92,130.89,8.33995756]
[1765125520275,3.86468091,130.91,130.89,8.33995756]
[1765125521077,3.86468091,130.91,130.89,7.63995756]
[1765125521277,3.86468091,130.91,130.89,8.33995756]
[1765125522480,41.19663244,130.93,130.87,7.64105004]
[1765125522481,4.57468091,130.9,130.87,7.64105004]
[1765125522689,3.86468091,130.89,130.87,7.64105004]
[1765125522881,4.57468091,130.89,130.87,7.64105004]
[1765125523065,52.65371438,130.93,130.86,0.1]
[1765125523066,4.57468091,130.88,130.86,0.1]
[1765125523264,3.86468091,130.87,130.86,0.1]
[1765125524488,12.21585153,130.87,130.86,0.1]
[1765125524793,4.57468091,130.87,130.86,0.1]
[1765125525289,3.86468091,130.87,130.86,0.1]
[1765125526593,3.86468091,130.88,130.86,0.1]
[1765125526890,4.57468091,130.88,130.86,0.1]
[1765125528891,3.86468091,130.87,130.86,0.1]
[1765125530103,4.57468091,130.88,130.86,0.1]
[1765125532108,3.86468091,130.87,130.86,0.1]
[1765125532279,4.53468091,130.87,130.86,0.1]
[1765125532898,3.86468091,130.87,130.86,0.1]
[1765125533276,4.53468091,130.87,130.86,0.1]
[1765125534879,12.17585153,130.87,130.86,0.1]
[1765125535699,20.61585153,130.87,130.86,0.1]
[1765125536999,12.30468091,130.87,130.86,0.1]
[1765125537301,12.96468091,130.87,130.86,0.1]
[1765125537704,12.30468091,130.87,130.86,0.1]
[1765125537887,12.96468091,130.87,130.86,0.1]
[1765125543817,12.30468091,130.87,130.86,0.1]
[1765125544021,3.86468091,130.88,130.86,0.79]
[1765125545087,4.52468091,130.87,130.86,0.1]
[1765125546506,12.16585153,130.87,130.86,0.1]
[1765125547403,12.96468091,130.87,130.86,0.1]
[1765125550530,20.60585153,130.87,130.86,0.1]
[1765125551203,29.41579645,130.87,130.86,0.1]
[1765125554136,45.72466045,130.87,130.86,0.1]
[1765125562210,45.06466045,130.87,130.86,0.1]
[1765125565544,45.73466045,130.87,130.86,0.1]
[1765125566245,45.06466045,130.87,130.86,0.1]
[1765125566449,45.73466045,130.87,130.86,0.1]
[1765125567022,32.39003462,130.87,130.86,0.82]
[1765125567240,36.25471553,130.87,130.86,0.82]
[1765125567448,36.25471553,130.87,130.86,0.1]
[1765125567824,28.61354491,130.87,130.86,0.1]
[1765125568020,12.30468091,130.88,130.86,0.82]
[1765125571654,8.44,130.88,130.86,0.82]
[1765125571829,3.86468091,130.89,130.86,8.46167656]
[1765125572231,3.86468091,130.89,130.87,0.72]
[1765125574766,19.94434731,130.9,130.87,8.3611265]
[1765125575246,19.94434731,130.9,130.88,0.72]
[1765125575449,16.0796664,130.9,130.88,0.72]
[1765125575651,19.94434731,130.9,130.88,0.72]
[1765125575849,3.86468091,130.89,130.86,7.74153636]
[1765125576038,3.86468091,130.89,130.87,0.72]
[1765125576665,2.47435178,130.89,130.87,0.72]
[1765125576968,18.55401818,130.9,130.87,8.3611479]
[1765125577358,18.55401818,130.9,130.88,0.72]
[1765125582341,19.22401818,130.9,130.88,0.72]
[1765125582559,18.55401818,130.9,130.88,0.72]
[1765125582854,18.55401818,130.9,130.86,7.74175454]
[1765125582855,16.7496664,130.9,130.86,7.74175454]
[1765125583050,2.47435178,130.89,130.88,0.72]
[1765125584486,2.47435178,130.89,130.86,7.74175454]
[1765125584642,2.47435178,130.88,130.87,0.72]
[1765125584952,2.47435178,130.89,130.87,0.72]
[1765125586555,10.91435178,130.9,130.87,8.36113718]
[1765125586763,2.47435178,130.94,130.88,2.47435178]
[1765125586975,2.47435178,130.95,130.89,2.47435178]
[1765125587144,10.91435178,130.95,130.9,26.73796791]
[1765125587347,8.44,130.95,130.9,27.45796791]
[1765125587551,10.91435178,130.97,130.91,14.10870356]
[1765125587984,10.91435178,130.97,130.92,0.72]
[1765125588676,10.91435178,130.97,130.93,7.63766898]
[1765125588886,8.44,130.97,130.93,7.63766898]
[1765125589082,2.47435178,130.96,130.94,0.72]
[1765125590078,10.91435178,130.97,130.94,0.72]
[1765125590388,8.44,130.97,130.94,0.72]
[1765125590547,10.91435178,130.97,130.94,0.72]
[1765125592250,2.47435178,130.96,130.94,0.66]
[1765125592680,3.13435178,130.96,130.93,8.29766898]
[1765125592876,2.47435178,130.95,130.93,0.66]
[1765125593071,2.47435178,130.94,130.91,16.73876795]
[1765125593278,2.47435178,130.93,130.91,31.23893235]
[1765125593556,3.13435178,130.93,130.9,8.29923983]
[1765125594181,2.47435178,130.93,130.91,0.66]
[1765125595285,2.47435178,130.93,130.91,8.29881791]
[1765125595683,2.47435178,130.93,130.92,0.65]
[1765125596089,10.91435178,130.94,130.92,0.65]
[1765125596287,8.44,130.94,130.92,0.65]
[1765125596587,2.47435178,130.97,130.92,0.65]
[1765125596786,2.47435178,130.97,130.92,17.618864]
[1765125597306,2.47435178,130.97,130.93,8.28766898]
[1765125597663,3.13435178,130.97,130.94,0.65]
[1765125598398,2.47435178,130.97,130.94,0.65]
[1765125599498,2.47435178,130.96,130.94,0.65]
[1765125599658,3.13435178,130.96,130.93,7.63766898]
[1765125600157,3.13435178,130.96,130.93,8.28766898]
[1765125600601,2.47435178,130.94,130.91,0.65]
[1765125601278,3.13435178,130.93,130.89,28.18934835]
[1765125601485,3.13435178,130.93,130.9,8.28938854]
[1765125601972,3.13435178,130.93,130.9,0.65]
[1765125602386,2.47435178,130.92,130.9,0.65]
[1765125603391,3.13435178,130.91,130.88,8.29040065]
[1765125605873,2.47435178,130.91,130.89,0.65]
[1765125606373,2.47435178,130.94,130.89,8.28996023]
[1765125606591,10.91435178,130.94,130.9,0.65]
[1765125607268,10.91435178,130.94,130.9,9.09]
[1765125607592,2.47435178,130.94,130.91,8.28883584]
[1765125608289,2.47435178,130.95,130.92,0.65]
[1765125609695,2.47435178,130.95,130.92,8.28803499]
[1765125611886,2.47435178,130.95,130.91,7.63883584]
[1765125612093,2.47435178,130.95,130.93,0.65]
[1765125613102,3.13435178,130.95,130.92,8.28800572]
[1765125613402,3.13435178,130.94,130.91,8.28858155]
[1765125614081,3.13435178,130.93,130.9,16.07922154]
[1765125614276,2.47435178,130.92,130.89,8.28983746]
[1765125614497,3.13435178,130.92,130.89,8.28983746]
[1765125615902,2.47435178,130.9,130.88,7.64053392]
[1765125616207,2.47435178,130.9,130.87,7.64101065]
[1765125616380,3.13435178,130.9,130.87,8.29101065]
[1765125616779,3.13435178,130.89,130.86,8.39160666]
[1765125616980,2.47435178,130.89,130.87,7.64115158]
[1765125617294,2.47435178,130.89,130.87,8.29115158]
[1765125620014,3.13435178,130.89,130.86,8.39155613]
[1765125620381,2.47435178,130.89,130.86,7.74155613]
[1765125620585,17.11901771,130.91,130.87,8.29115768]
[1765125620785,2.47435178,130.9,130.87,8.29115768]
[1765125621427,3.14435178,130.9,130.87,8.29115768]
[1765125622103,2.47435178,130.9,130.88,0.69]
[1765125622279,2.47435178,130.91,130.88,0.69]
[1765125622480,3.14435178,130.91,130.88,0.69]
[1765125623103,3.14435178,130.91,130.88,8.3304569]
[1765125624099,3.14435178,130.91,130.88,7.6404569]
[1765125624301,3.14435178,130.91,130.88,8.3304569]
[1765125624498,2.47435178,130.9,130.88,8.3304569]
[1765125624684,0.67,130.91,130.88,8.3304569]
[1765125624685,3.14435178,130.91,130.88,8.3304569]
[1765125627410,3.14435178,130.91,130.89,0.69]
[1765125627611,2.47435178,130.91,130.89,0.69]
[1765125628711,2.47435178,130.91,130.88,7.64035097]
[1765125628712,3.14435178,130.91,130.88,7.64035097]
[1765125628886,3.14435178,130.91,130.88,8.33035097]
[1765125629510,3.14435178,130.91,130.87,7.64117062]
[1765125629812,3.14435178,130.91,130.89,0.69]
[1765125630006,2.47435178,130.91,130.89,0.69]
[1765125630213,3.14435178,130.91,130.89,0.69]
[1765125630809,2.47435178,130.91,130.89,0.69]
[1765125630989,3.14435178,130.91,130.88,7.64033733]
[1765125631189,3.14435178,130.91,130.88,8.33033733]
[1765125636508,10.78325178,130.91,130.88,8.33033733]
[1765125636711,12.17404485,130.91,130.88,8.33033733]
[1765125636909,12.17404485,130.91,130.88,7.64033733]
[1765125637102,12.17404485,130.91,130.88,8.33033733]
[1765125638091,4.53514485,130.91,130.88,0.69]
[1765125638408,3.86514485,130.9,130.88,0.69]
[1765125639612,0.67,130.89,130.86,16.07025554]
[1765125639812,4.53514485,130.89,130.86,8.43175454]
[1765125640014,4.53514485,130.89,130.87,0.69]
[1765125640015,3.86514485,130.89,130.87,0.69]
[1765125640219,4.53514485,130.9,130.87,8.33110278]
[1765125640727,0.67,130.89,130.86,0.1]
[1765125640928,12.67508977,130.87,130.8,0.69]
[1765125641101,3.86514485,130.83,130.81,0.69]
[1765125641534,9.47994492,130.86,130.81,0.69]
[1765125641535,3.86514485,130.84,130.81,0.69]
[1765125641896,3.86514485,130.82,130.79,8.33569185]
[1765125642122,3.86514485,130.82,130.8,0.69]
[1765125642430,3.86514485,130.83,130.8,0.69]
[1765125642610,4.53514485,130.83,130.8,0.69]
[1765125643821,3.86514485,130.83,130.8,8.33504243]
[1765125644202,3.86514485,130.83,130.8,7.64504243]
[1765125644510,3.86514485,130.82,130.8,0.69]
[1765125645903,8.80994492,130.8,130.76,0.1]
[1765125646122,3.86514485,130.78,130.76,0.1]
[1765125646727,3.86514485,130.78,130.76,0.79]
[1765125648531,3.86514485,130.77,130.76,0.1]
[1765125648720,4.53514485,130.77,130.76,0.1]
[1765125650430,12.18215869,130.77,130.76,0.1]
[1765125651819,20.99210361,130.77,130.76,0.1]
[1765125652837,11.51215869,130.77,130.76,0.1]
[1765125653545,12.23215869,130.77,130.76,0.1]
[1765125653748,21.04210361,130.77,130.76,0.1]
[1765125656816,20.32210361,130.77,130.76,0.1]
[1765125657432,11.51215869,130.77,130.76,0.1]
[1765125658538,3.86514485,130.77,130.76,0.1]
[1765125658714,3.86514485,130.77,130.76,0.81]
[1765125661018,3.86514485,130.78,130.76,0.81]
[1765125661345,3.86514485,130.78,130.76,8.45758021]
[1765125661546,3.86514485,130.78,130.76,0.81]
[1765125661733,3.86514485,130.77,130.76,0.81]
[1765125661920,3.86514485,130.78,130.76,0.81]
[1765125662443,3.86514485,130.77,130.76,0.1]
[1765125662652,12.30514485,130.77,130.76,0.1]
[1765125662952,21.83508977,130.77,130.76,0.1]
[1765125663120,33.34724846,130.77,130.76,0.1]
[1765125663515,25.11880892,130.76,130.75,0.1]
[1765125663713,29.70395377,130.76,130.75,0.1]
[1765125664352,17.26023462,130.76,130.73,0.1]
[1765125664517,28.98395377,130.74,130.73,0.1]
[1765125664719,8.80994492,130.73,130.72,0.1]
[1765125664918,21.83508977,130.73,130.72,0.1]
[1765125665225,45.79330739,130.73,130.72,0.1]
[1765125667247,29.48444339,130.73,130.72,0.1]
[1765125667548,16.308864,130.7,130.67,0.71]
[1765125667749,24.748864,130.7,130.67,0.71]
[1765125667914,3.86514485,130.68,130.67,0.71]
[1765125668534,12.30514485,130.68,130.64,0.1]
[1765125668735,3.86514485,130.67,130.66,0.71]
[1765125669724,3.86514485,130.67,130.65,0.71]
[1765125672228,3.86514485,130.69,130.65,8.36401424]
[1765125672432,36.26531968,130.7,130.65,8.36401424]
[1765125672637,36.26531968,130.7,130.66,0.71]
[1765125673442,11.5157588,130.71,130.66,8.36314506]
[1765125673826,11.5157588,130.71,130.67,0.71]
[1765125674149,3.86514485,130.7,130.67,0.71]
[1765125675231,3.86514485,130.7,130.67,8.36266133]
[1765125675755,3.86514485,130.7,130.68,0.71]
[1765125678439,3.86514485,130.7,130.68,8.36225333]
[1765125678832,41.20897464,130.72,130.69,0.71]
[1765125678833,3.86514485,130.71,130.69,0.71]
[1765125679026,28.61400885,130.72,130.69,0.71]
[1765125680050,3.86514485,130.71,130.69,0.71]
[1765125680227,12.30514485,130.72,130.69,0.71]
[1765125680548,7.88499396,130.78,130.71,7.65052406]
[1765125680549,11.51261869,130.77,130.71,7.65052406]
[1765125680848,3.86514485,130.76,130.71,7.65052406]
[1765125681145,3.86514485,130.75,130.72,0.71]
[1765125681352,4.55514485,130.75,130.72,0.71]
[1765125681926,3.86514485,130.75,130.72,0.71]
[1765125682852,3.86514485,130.75,130.72,8.35976621]
[1765125683044,8.80994492,130.78,130.73,3.86514485]
[1765125683247,8.80994492,130.78,130.74,3.86514485]
[1765125683446,8.80994492,130.78,130.74,4.57514485]
[1765125683653,8.80994492,130.78,130.75,0.71]
[1765125684041,24.748864,130.79,130.75,0.71]
[1765125684341,24.748864,130.79,130.75,4.57514485]
[1765125684657,19.94999952,130.81,130.76,3.86514485]
[1765125684831,36.25886352,130.81,130.77,7.64701384]
[1765125685031,36.94886352,130.81,130.77,8.35701384]
[1765125685234,36.94886352,130.81,130.78,0.71]
[1765125685634,4.55514485,130.8,130.77,7.64701384]
[1765125685841,4.55514485,130.8,130.77,8.35701384]
[1765125686959,0.69,130.8,130.77,8.35701384]
[1765125687661,24.748864,130.81,130.78,8.35608411]
[1765125687852,25.438864,130.81,130.78,8.35608411]
[1765125690558,24.748864,130.81,130.78,3.86514485]
[1765125690760,8.44,130.81,130.79,4.57514485]
[1765125691339,16.308864,130.83,130.8,0.71]
[1765125691650,34.24880892,130.85,130.81,3.86514485]
[1765125691847,17.93994492,130.85,130.81,3.86514485]
[1765125692150,34.24880892,130.85,130.82,0.71]
[1765125692664,0.69,130.84,130.8,11.50998003]
[1765125692860,25.58243379,130.85,130.81,0.71]
[1765125693039,41.89129779,130.85,130.81,0.71]
[1765125693240,41.89129779,130.85,130.81,4.57514485]
[1765125693738,41.89129779,130.85,130.82,3.86514485]
[1765125694354,0.69,130.84,130.81,3.86514485]
[1765125695741,7.64350684,130.83,130.81,3.86514485]
[1765125696637,8.33350684,130.83,130.81,2.47606063]
[1765125696978,0.69,130.82,130.8,2.47606063]
[1765125697281,17.93994492,130.83,130.8,2.47606063]
[1765125697581,17.93994492,130.83,130.8,3.18606063]
[1765125698059,17.93994492,130.83,130.8,2.47606063]
[1765125698237,25.58402244,130.83,130.8,3.18606063]
[1765125698440,25.58402244,130.83,130.8,2.47606063]
[1765125698639,25.58402244,130.83,130.8,3.18606063]
[1765125699437,16.77407752,130.83,130.8,3.18606063]
[1765125699635,16.08407752,130.83,130.8,3.18606063]
[1765125699849,16.08407752,130.83,130.81,2.47606063]
[1765125700234,0.2,130.87,130.82,3.18606063]
[1765125700433,16.6511543,130.87,130.85,2.47606063]
[1765125700656,17.3411543,130.87,130.84,2.47606063]
[1765125701048,17.3411543,130.87,130.84,3.18606063]
[1765125701249,16.6511543,130.87,130.83,2.47606063]
[1765125701449,16.6511543,130.87,130.82,2.47606063]
[1765125701450,8.80994492,130.85,130.82,2.47606063]
[1765125702070,9.13,130.84,130.81,2.47606063]
[1765125702247,16.77298205,130.84,130.81,3.18606063]
[1765125702550,16.77298205,130.84,130.81,0.71]
[1765125703172,9.13,130.84,130.81,8.35462303]
[1765125704146,16.77296263,130.84,130.81,8.35462303]
[1765125705571,19.24902326,130.84,130.81,8.35462303]
[1765125708576,3.16606063,130.83,130.8,7.64518702]
[1765125708781,3.16606063,130.83,130.8,8.35518702]
[1765125709075,3.16606063,130.83,130.8,0.71]
[1765125709675,16.08296263,130.84,130.78,7.64631659]
[1765125709676,11.28600555,130.82,130.78,7.64631659]
[1765125709872,2.47606063,130.81,130.78,8.35631659]
[1765125710078,3.16606063,130.81,130.78,8.35631659]
[1765125714970,0.69,130.8,130.77,8.36685525]
[1765125715366,10.12081236,130.81,130.78,0.72]
[1765125715566,8.35475173,130.81,130.78,0.72]
[1765125715865,28.08028787,130.82,130.78,8.3662361]
[1765125716180,28.08028787,130.82,130.77,7.64701384]
[1765125716485,28.08028787,130.82,130.78,0.66]
[1765125717281,27.37028787,130.82,130.78,8.30626462]
[1765125717472,0.71,130.81,130.78,8.30626462]
[1765125718366,0.71,130.81,130.78,7.64626462]
[1765125718680,10.83082591,130.81,130.77,8.30693437]
[1765125719072,10.83082591,130.81,130.78,0.66]
[1765125720980,8.35476528,130.81,130.78,0.66]
[1765125721186,17.24994492,130.82,130.78,8.30638693]
[1765125721366,0.71,130.81,130.78,8.30638693]
[1765125721885,0.71,130.81,130.79,0.66]
[1765125722080,28.0801912,130.82,130.79,0.66]
[1765125722767,0.71,130.81,130.78,8.30638693]
[1765125722966,27.3701912,130.82,130.76,21.59396154]
[1765125722967,8.80994492,130.82,130.79,8.30567198]
[1765125723184,25.458864,130.84,130.79,8.30567198]
[1765125723367,25.458864,130.84,130.8,0.66]
[1765125723563,33.10193675,130.84,130.8,0.66]
[1765125723760,35.57799738,130.84,130.8,0.66]
[1765125723965,0.71,130.83,130.8,0.66]
[1765125724187,35.07799738,130.84,130.8,0.66]
[1765125724789,32.60193675,130.84,130.8,8.30468001]
[1765125725287,35.07799738,130.84,130.8,8.30468001]
[1765125725590,0.71,130.83,130.8,8.30468001]
[1765125726262,2.47606063,130.81,130.77,7.64685904]
[1765125726461,2.47606063,130.8,130.77,7.64685904]
[1765125726665,3.18606063,130.81,130.77,7.64685904]
[1765125726890,3.18606063,130.81,130.78,0.66]
[1765125727471,8.44,130.82,130.8,7.64523107]
[1765125727990,8.44,130.82,130.8,0.66]
[1765125728882,9.15,130.82,130.79,7.64584448]
[1765125729290,9.15,130.82,130.79,8.30584448]
[1765125729490,11.62606063,130.82,130.79,8.30584448]
[1765125730396,3.18606063,130.81,130.77,8.30677049]
[1765125730566,3.18606063,130.81,130.77,7.64677049]
[1765125730770,0.71,130.81,130.78,0.66]
[1765125733197,8.35478786,130.81,130.78,0.66]
[1765125736795,0.71,130.83,130.79,10.12190511]
[1765125736991,9.15,130.83,130.79,10.12190511]
[1765125737190,9.15,130.83,130.78,0.66]
[1765125737191,8.80994492,130.82,130.78,7.64618047]
[1765125737395,9.51994492,130.82,130.78,7.64618047]
[1765125737570,0.71,130.81,130.78,7.64618047]
[1765125738186,0.71,130.81,130.77,10.7828842]
[1765125738388,0.71,130.81,130.76,7.64731624]
[1765125738389,8.80994492,130.8,130.76,7.64731624]
[1765125738598,8.80994492,130.8,130.75,7.6479695]
[1765125738599,2.47606063,130.79,130.75,7.6479695]
[1765125738907,0.71,130.79,130.75,7.6479695]
[1765125739084,0.71,130.78,130.75,7.6479695]
[1765125739283,0.71,130.78,130.75,8.3079695]
[1765125739708,7.645906,130.79,130.75,8.3079695]
[1765125739906,8.355906,130.79,130.76,0.66]
[1765125740484,17.95994492,130.78,130.74,10.78463789]
[1765125740809,17.95994492,130.78,130.75,0.7]
[1765125741109,8.80994492,130.76,130.72,0.7]
[1765125741306,8.80994492,130.76,130.7,10.82693195]
[1765125741307,8.80994492,130.74,130.7,10.82693195]
[1765125741908,9.52994492,130.74,130.7,10.82693195]
[1765125742701,8.44,130.75,130.72,2.47606063]
[1765125742879,9.16,130.75,130.71,3.17606063]
[1765125743295,9.16,130.75,130.72,0.7]
[1765125744610,32.76659504,130.76,130.72,0.7]
[1765125744611,16.308864,130.76,130.73,2.47606063]
[1765125745109,16.308864,130.76,130.73,3.17606063]
[1765125745285,17.028864,130.76,130.72,10.12598515]
[1765125745485,9.52994492,130.75,130.71,7.65046518]
[1765125745715,19.65454701,130.75,130.71,7.65046518]
[1765125745886,9.16,130.74,130.7,8.35089028]
[1765125746408,9.16,130.74,130.71,0.7]
[1765125747510,9.52994492,130.73,130.69,7.65147746]
[1765125747711,9.52994492,130.73,130.69,8.35147746]
[1765125748016,16.08896587,130.74,130.7,8.35107745]
[1765125748215,16.80896587,130.74,130.7,8.35107745]
[1765125748418,16.80896587,130.74,130.71,0.7]
[1765125748714,17.96994492,130.74,130.71,8.35052014]
[1765125748891,25.61874953,130.74,130.7,10.82695337]
[1765125749914,8.36942294,130.73,130.7,0.7]
[1765125750109,17.24994492,130.74,130.71,0.7]
[1765125750110,28.0949485,130.74,130.71,0.7]
[1765125750413,0.72,130.73,130.7,8.3510181]
[1765125752415,25.61888787,130.74,130.7,8.3510181]
[1765125753211,0.72,130.73,130.7,8.3510181]
[1765125754818,25.61888787,130.74,130.7,8.3510181]
[1765125755113,24.89888787,130.74,130.7,8.3510181]
[1765125755320,25.61888787,130.74,130.7,8.3510181]
[1765125755509,0.72,130.73,130.7,8.3510181]
[1765125757117,17.24994492,130.74,130.71,0.7]
[1765125757421,25.61873377,130.74,130.71,0.7]
[1765125758001,9.52994492,130.73,130.69,10.82750144]
[1765125758209,9.52994492,130.73,130.7,0.7]
[1765125760516,8.80994492,130.73,130.7,12.2263839]
[1765125760720,9.52994492,130.73,130.7,12.2263839]
[1765125760908,17.17944149,130.73,130.7,0.7]
[1765125761411,17.17944149,130.73,130.7,8.35110792]
[1765125762302,8.44,130.74,130.71,0.7]
[1765125762496,9.16,130.74,130.71,0.7]
[1765125762916,8.44,130.74,130.71,4.57532336]
[1765125763329,8.44,130.74,130.72,8.34990054]
[1765125766399,8.44,130.74,130.72,0.7]
[1765125767212,9.16,130.74,130.71,8.3504561]
[1765125767417,8.44,130.74,130.72,0.7]
[1765125774109,0.7,130.73,130.7,11.52619358]
[1765125774308,16.78879412,130.74,130.71,0.66]
[1765125775831,9.14,130.74,130.71,8.31051482]
[1765125777134,16.78884632,130.74,130.71,8.31051482]
[1765125777832,16.78884632,130.74,130.71,0.66]
[1765125778331,9.52994492,130.73,130.69,7.65161612]
[1765125778514,8.44,130.72,130.68,8.32195699]
[1765125778714,9.16,130.72,130.69,8.32145911]
[1765125778918,8.44,130.72,130.7,7.65109027]
[1765125779124,8.80994492,130.73,130.71,7.65052406]
[1765125779324,8.44,130.74,130.71,8.32052406]
[1765125779529,9.16,130.74,130.71,8.32052406]
[1765125780317,8.44,130.74,130.72,8.31976934]
[1765125781431,8.44,130.74,130.73,0.67]
[1765125781745,8.44,130.74,130.72,8.31976934]
[1765125784047,8.44,130.74,130.72,12.1950927]
[1765125784242,8.80994492,130.77,130.73,4.54532336]
[1765125784534,8.80994492,130.77,130.74,3.87532336]
[1765125784720,8.80994492,130.77,130.74,4.54532336]
[1765125784924,9.16,130.79,130.75,4.54532336]
[1765125785109,8.44,130.79,130.76,3.87532336]
[1765125785312,8.44,130.79,130.77,3.87532336]
[1765125785516,8.44,130.79,130.77,4.54532336]
[1765125785736,8.44,130.79,130.78,0.67]
[1765125786315,17.17502345,130.81,130.78,0.67]
[1765125786522,25.61502345,130.81,130.78,0.67]
[1765125787235,24.89502345,130.81,130.77,11.52229847]
[1765125787534,0.72,130.8,130.77,12.19229847]
[1765125789045,8.36539809,130.8,130.77,4.54532336]
[1765125789544,0.72,130.8,130.77,12.19228257]
[1765125790127,8.44,130.81,130.78,12.19133418]
[1765125790340,0.72,130.8,130.76,7.64719492]
[1765125790717,8.44,130.79,130.76,7.64719492]
[1765125791049,9.16,130.79,130.76,7.64719492]
[1765125791429,0.72,130.78,130.76,7.64719492]
[1765125791955,0.72,130.78,130.75,7.64800568]
[1765125792145,9.52994492,130.78,130.73,4.54532336]
[1765125792533,0.72,130.77,130.74,0.67]
[1765125793150,0.72,130.77,130.74,8.31856329]
[1765125794455,16.45646955,130.78,130.74,12.19388665]
[1765125794656,8.44,130.79,130.76,3.87532336]
[1765125795152,8.44,130.79,130.77,0.67]
[1765125795358,7.64489818,130.81,130.77,4.54532336]
[1765125795547,0.72,130.81,130.78,3.87532336]
[1765125795750,33.1130637,130.82,130.78,4.54532336]
[1765125796055,33.1130637,130.82,130.79,0.67]
[1765125796235,16.0841997,130.82,130.79,4.54532336]
[1765125796634,16.8041997,130.82,130.79,4.54532336]
[1765125796825,16.0841997,130.82,130.79,4.54532336]
[1765125797029,16.0841997,130.82,130.8,0.67]
[1765125797264,16.8041997,130.82,130.79,4.54532336]
[1765125798056,16.0841997,130.82,130.79,4.54532336]
[1765125798255,16.8041997,130.82,130.79,4.54532336]
[1765125798429,16.0841997,130.82,130.8,0.67]
[1765125798626,16.80431209,130.82,130.79,3.87532336]
[1765125798851,16.80431209,130.82,130.79,4.54532336]
[1765125799562,16.308864,130.83,130.8,0.67]
[1765125799872,123.90517532,130.86,130.8,0.67]
[1765125799873,24.89229433,130.85,130.81,3.87532336]
[1765125800070,0.72,130.84,130.81,3.87532336]
[1765125800378,0.72,130.84,130.81,4.54532336]
[1765125800548,8.36315311,130.84,130.8,7.6452111]
[1765125800734,21.12526828,130.83,130.78,7.64641723]
[1765125800936,21.81526828,130.83,130.78,7.64641723]
[1765125801144,0.69,130.82,130.78,0.67]
[1765125802034,0.69,130.82,130.77,11.52213282]
[1765125802035,8.80994492,130.81,130.77,7.64680946]
[1765125802240,0.69,130.8,130.77,8.31680946]
[1765125802669,0.69,130.8,130.77,0.67]
[1765125802959,16.45489807,130.81,130.77,0.67]
[1765125803151,17.14489807,130.81,130.77,0.67]
[1765125803762,17.14489807,130.81,130.77,12.19211263]
[1765125804846,0.69,130.8,130.77,4.54532336]
[1765125805249,0.69,130.8,130.76,7.64737698]